lending/lending_fUSD_20251116
["ID","MTS","AMOUNT","RATE_DAILY","PERIOD"]
[394094284,1763269842950,-322.6107,0.00017203,2]
[394094286,1763269842959,-151.0,0.00017203,2]
[394094287,1763269842969,-151.0,0.00017203,2]
[394094288,1763269842978,-151.0,0.00017203,2]
[394094289,1763269842987,-151.0,0.00017203,2]
[394094290,1763269842997,-151.0,0.00017203,2]
[394094291,1763269843007,-151.0,0.00017203,2]
[394094292,1763269843016,-151.0,0.00017203,2]
[394094293,1763269843025,-151.0,0.00017203,2]
[394094294,1763269843034,-151.0,0.00017203,2]
[394094295,1763269843044,-151.0,0.00017203,2]
[394094296,1763269843053,-151.0,0.00017203,2]
[394094297,1763269843062,-265.04564495,0.00017203,2]
[394094298,1763269843071,-151.0,0.00017203,2]
[394094299,1763269843080,-151.0,0.00017203,2]
[394094300,1763269843089,-151.0,0.00017203,2]
[394094301,1763269843099,-151.0,0.00017203,2]
[394094302,1763269843107,-151.0,0.00017203,2]
[394094303,1763269843117,-151.0,0.00017203,2]
[394094304,1763269843127,-151.0,0.00017203,2]
[394094305,1763269843136,-151.0,0.00017203,2]
[394094306,1763269843147,-151.0,0.00017203,2]
[394094307,1763269843156,-151.0,0.00017203,2]
[394094309,1763269843165,-151.0,0.00017203,2]
[394094310,1763269843175,-151.0,0.00017203,2]
[394094311,1763269843185,-151.0,0.00017203,2]
[394094312,1763269843195,-167.39951984,0.00017203,2]
[394094313,1763269843204,-151.0,0.00017203,2]
[394094315,1763269843213,-151.0,0.00017203,2]
[394094317,1763269843222,-151.0,0.00017203,2]
[394094319,1763269843231,-151.0,0.00017203,2]
[394094321,1763269843241,-250.0,0.00017203,2]
[394094323,1763269843250,-250.0,0.00017203,2]
[394094325,1763269843259,-250.0,0.00017203,2]
[394094327,1763269843268,-250.0,0.00017203,2]
[394094328,1763269843278,-250.0,0.00017203,2]
[394094329,1763269843287,-250.0,0.00017203,2]
[394094330,1763269843296,-250.0,0.00017203,2]
[394094331,1763269843306,-250.0,0.00017203,2]
[394094332,1763269843323,-574.12855637,0.00017203,2]
[394094333,1763269843343,-250.0,0.00017203,2]
[394094334,1763269843352,-250.0,0.00017203,2]
[394094335,1763269843362,-250.0,0.00017203,2]
[394094336,1763269843371,-342.65524781,0.00017203,2]
[394094337,1763269843380,-151.0,0.00017203,2]
[394094338,1763269843389,-151.0,0.00017203,2]
[394094339,1763269843398,-151.0,0.00017203,2]
[394094340,1763269843407,-151.0,0.00017203,2]
[394094341,1763269843416,-151.0,0.00017203,2]
[394094342,1763269843425,-151.0,0.00017203,2]
[394094343,1763269843434,-151.0,0.00017203,2]
[394094344,1763269843443,-151.0,0.00017203,2]
[394094345,1763269843452,-151.0,0.00017203,2]
[394094346,1763269843461,-151.0,0.00017203,2]
[394094347,1763269843470,-151.0,0.00017203,2]
[394094348,1763269843479,-151.0,0.00017203,2]
[394094349,1763269843488,-250.0,0.00017203,2]
[394094350,1763269843498,-250.0,0.00017203,2]
[394094351,1763269843507,-250.0,0.00017203,2]
[394094352,1763269843516,-250.0,0.00017203,2]
[394094353,1763269843525,-250.0,0.00017203,2]
[394094354,1763269843535,-250.0,0.00017203,2]
[394094355,1763269843544,-250.0,0.00017203,2]
[394094356,1763269843554,-250.0,0.00017203,2]
[394094357,1763269843563,-250.0,0.00017203,2]
[394094358,1763269843572,-250.0,0.00017203,2]
[394094359,1763269843582,-250.0,0.00017203,2]
[394094360,1763269843591,-500.0,0.00017213,2]
[394094361,1763269843600,-500.0,0.00017213,2]
[394094362,1763269843610,-1583.40046,0.00017214,2]
[394094363,1763269843619,-5017.0,0.00017241,2]
[394094364,1763269843628,-223.27,0.00017245,2]
[394094365,1763269843637,-5017.0,0.00017262,2]
[394094366,1763269843647,-700.06,0.000173,2]
[394094367,1763269843656,-250.0,0.00017303,2]
[394094368,1763269843665,-300.0,0.00017303,2]
[394094369,1763269843676,-238.73229121,0.00017303,2]
[394094370,1763269843688,-300.0,0.00017303,2]
[394094371,1763269843699,-300.0,0.00017303,2]
[394094372,1763269843708,-500.0,0.00017313,2]
[394094373,1763269843717,-400.56520065,0.00017313,2]
[394094374,1763269843727,-168.37794701,0.00017313,2]
[394094375,1763269843736,-956.32,0.000174,2]
[394094376,1763269843746,-1294.0,0.000174,2]
[394094377,1763269843756,-5017.0,0.00017499,2]
[394094378,1763269843765,-1583.40047,0.000175,2]
[394094379,1763269843774,-1489.0,0.00017577,2]
[394094380,1763269843784,-5017.0,0.00017679,2]
[394094381,1763269843793,-1489.0,0.00017697,2]
[394094382,1763269843803,-192.49697638,0.000177,2]
[394094383,1763269843812,-151.0,0.00017751,2]
[394094384,1763269843822,-595.37131296,0.00017751,2]
[394094385,1763269843832,-4648.95872947,0.00017772,2]
[394094386,1763269843841,-320.57,0.0001784,2]
[394094387,1763269843851,-536.33,0.0001784,2]
[394094388,1763269843860,-200.0,0.00017855,2]
[394094389,1763269843870,-200.0,0.00017856,2]
[394094390,1763269843879,-200.0,0.00017856,2]
[394094391,1763269843889,-500.0,0.00017863,2]
[394094392,1763269843899,-1500.2364441,0.000179,2]
[394094393,1763269843908,-13212.55803178,0.000179,2]
[394094394,1763269843917,-1489.0,0.00017915,2]
[394094395,1763269843926,-1000.0,0.00017915,2]
[394094396,1763269843936,-1000.0,0.00017915,2]
[394094397,1763269843945,-1000.0,0.00017915,2]
[394094398,1763269843954,-1000.0,0.00017915,2]
[394094399,1763269843964,-12995.5031457,0.00017951,2]
[394094400,1763269843973,-3344.0185205,0.00017951,2]
[394094401,1763269843982,-43649.82184593,0.00017951,2]
[394094402,1763269843998,-1240.08180558,0.00017951,2]
[394094406,1763269845447,-36234.81839869,0.00017951,2]
[394094407,1763269845459,-364.00002,0.00017951,2]
[394094408,1763269845470,-774.50000158,0.00017951,2]
[394094409,1763269845482,-362.5,0.00017951,2]
[394094410,1763269845493,-290.856,0.00017951,2]
[394094411,1763269845504,-424.56000003,0.00017951,2]
[394094412,1763269845560,-7494.77555955,0.00017951,2]
[394094413,1763269845572,-10486.35440012,0.00017951,2]
[394094414,1763269845618,-993.79639442,0.00017951,2]
[394094415,1763269845630,-11060.07969516,0.00017951,2]
[394094488,1763270430470,465.72,0.0003013,120]
[394094490,1763270619352,155.34,0.0001337,2]
[394094492,1763270706655,386.84,8.389e-05,2]
[394094493,1763270706940,386.84,8.83e-05,2]
[394094494,1763270707150,386.84,9.272e-05,2]
[394094495,1763270707426,386.84,9.713e-05,2]
[394094496,1763270707979,386.84,0.00010155,2]
[394094497,1763270708026,386.84,0.00010596,2]
[394094498,1763270708061,386.84,0.00011038,2]
[394094499,1763270708369,386.84,0.00011479,2]
[394094500,1763270708574,386.84,0.00011921,2]
[394094501,1763270708775,386.84,0.00012362,2]
[394094502,1763270709005,386.84,0.00012804,2]
[394094503,1763270709205,386.84,0.00013245,2]
[394094504,1763270709601,386.84,0.00013687,2]
[394094505,1763270709865,386.84,0.00014128,2]
[394094506,1763270710055,386.84,0.0001457,2]
[394094507,1763270710251,386.84,0.00015011,2]
[394094508,1763270710452,386.84,0.00015453,2]
[394094512,1763270765968,2175.68174583,0.00011,2]
[394094514,1763270787869,770.96867125,0.00015,2]
[394094515,1763270787893,1260.67906369,0.00015,2]
[394094516,1763270794221,6762.26,0.00030137,120]
[394094524,1763270940943,150.0,0.00030136,120]
[394094526,1763270941849,1000.0,0.00013699,2]
[394094535,1763271031627,-386.84,0.00015894,2]
[394094536,1763271031637,-386.84,0.00016336,2]
[394094537,1763271031645,-1023.26964399,0.00016521,2]
[394094538,1763271031656,-5204.76396085,0.00016521,2]
[394094539,1763271031665,-200.0,0.00016741,2]
[394094540,1763271031674,-386.84,0.00016777,2]
[394094541,1763271031684,-300.0,0.00016781,2]
[394094542,1763271031693,-1200.0,0.00016819,2]
[394094543,1763271031702,-300.0,0.00016873,2]
[394094544,1763271031715,-339.0,0.00016899,2]
[394094545,1763271031725,-17229.2574,0.00016914,2]
[394094546,1763271031734,-300.0,0.00016951,2]
[394094547,1763271031743,-300.0,0.00016951,2]
[394094548,1763271031753,-10634.32323864,0.00016953,2]
[394094549,1763271031763,-151.0,0.00017003,2]
[394094550,1763271031772,-151.0,0.00017003,2]
[394094551,1763271031782,-151.0,0.00017003,2]
[394094552,1763271031791,-151.0,0.00017003,2]
[394094553,1763271031800,-151.0,0.00017003,2]
[394094554,1763271031811,-151.0,0.00017003,2]
[394094555,1763271031820,-151.0,0.00017003,2]
[394094556,1763271031831,-151.0,0.00017003,2]
[394094557,1763271031841,-176.29665512,0.00017003,2]
[394094558,1763271031850,-1000.0,0.00017053,2]
[394094559,1763271031859,-250.0,0.00017092,2]
[394094560,1763271031869,-574.12855637,0.00017092,2]
[394094561,1763271031879,-250.0,0.00017092,2]
[394094562,1763271031888,-250.0,0.00017092,2]
[394094563,1763271031897,-169.04537978,0.00017092,2]
[394094564,1763271031907,-322.6107,0.00017092,2]
[394094565,1763271032144,-151.0,0.00017092,2]
[394094566,1763271032156,-151.0,0.00017092,2]
[394094567,1763271032165,-151.0,0.00017092,2]
[394094568,1763271032174,-151.0,0.00017092,2]
[394094569,1763271032183,-151.0,0.00017092,2]
[394094570,1763271032192,-151.0,0.00017092,2]
[394094571,1763271032201,-151.0,0.00017092,2]
[394094572,1763271032210,-151.0,0.00017092,2]
[394094573,1763271032219,-151.0,0.00017092,2]
[394094574,1763271032228,-151.0,0.00017092,2]
[394094575,1763271032238,-151.0,0.00017092,2]
[394094576,1763271032247,-151.0,0.00017092,2]
[394094577,1763271032256,-277.35679052,0.00017092,2]
[394094578,1763271032267,-151.0,0.00017092,2]
[394094579,1763271032283,-339.0,0.00017169,2]
[394094580,1763271032292,-300.0,0.00017378,2]
[394094581,1763271032301,-369.0,0.00017404,2]
[394094582,1763271032311,-339.0,0.00017457,2]
[394094583,1763271032320,-339.0,0.0001748,2]
[394094584,1763271032329,-2000.0,0.000175,2]
[394094585,1763271032338,-174.29,0.00017536,2]
[394094586,1763271032347,-369.0,0.00017611,2]
[394094587,1763271032356,-150.0,0.00017616,2]
[394094588,1763271032365,-169.4,0.00017616,2]
[394094589,1763271032374,-169.4,0.00017616,2]
[394094590,1763271032383,-150.0,0.00017616,2]
[394094591,1763271032393,-150.0,0.00017616,2]
[394094592,1763271032402,-169.4,0.00017616,2]
[394094593,1763271032411,-169.4,0.00017616,2]
[394094594,1763271032420,-362.56,0.00017616,2]
[394094595,1763271032429,-169.4,0.00017616,2]
[394094596,1763271032439,-169.4,0.00017616,2]
[394094597,1763271032447,-169.4,0.00017616,2]
[394094598,1763271032456,-169.4,0.00017616,2]
[394094599,1763271032465,-169.4,0.00017616,2]
[394094600,1763271032475,-595.37131296,0.0001764,2]
[394094601,1763271032484,-239.14760503,0.0001764,2]
[394094602,1763271032493,-169.4,0.00017678,2]
[394094603,1763271032502,-150.0,0.000177,2]
[394094604,1763271032511,-171.57,0.000177,2]
[394094605,1763271032520,-150.0,0.000177,2]
[394094606,1763271032529,-150.0,0.000177,2]
[394094607,1763271032538,-169.4,0.000177,2]
[394094608,1763271032547,-150.0,0.000177,2]
[394094609,1763271032555,-169.4,0.000177,2]
[394094610,1763271032565,-150.0,0.000177,2]
[394094611,1763271032575,-169.4,0.000177,2]
[394094612,1763271032585,-150.0,0.000177,2]
[394094613,1763271032594,-222.22926538,0.00017712,2]
[394094614,1763271032603,-459.804,0.00017791,2]
[394094615,1763271032612,-320.56,0.00017821,2]
[394094616,1763271032621,-369.0,0.00017825,2]
[394094617,1763271032631,-168.43485435,0.00017851,2]
[394094618,1763271032640,-1725.9319964,0.00017856,2]
[394094619,1763271032649,-17290.4402707,0.00017856,2]
[394094620,1763271032658,-3378.4915137,0.00017856,2]
[394094621,1763271032667,-200.0,0.00017856,2]
[394094622,1763271032676,-1285.91695212,0.000179,2]
[394094623,1763271032686,-6533.86558102,0.000179,2]
[394094624,1763271032698,-6776.69700817,0.000179,2]
[394094625,1763271032707,-208.24129187,0.000179,2]
[394094626,1763271032716,-230.31228086,0.00017901,2]
[394094627,1763271032725,-500.0,0.0001795,2]
[394094628,1763271032734,-7927.09328178,0.00017951,2]
[394094639,1763271039636,-500.0,0.0001795,2]
[394094640,1763271039646,-223.15932603,0.0001795,2]
[394094641,1763271039655,-66.80067396,0.00017951,2]
[394094642,1763271039748,-28532.13284559,0.00017951,2]
[394094643,1763271039914,-2048.76066298,0.00017951,2]
[394094648,1763271042771,-22100.47687733,0.00017951,2]
[394094649,1763271042782,-400.56520065,0.00017951,2]
[394094650,1763271042791,-168.37794701,0.00017951,2]
[394094651,1763271042800,-200.0,0.00017951,2]
[394094652,1763271042809,-1055.60031,0.00017951,2]
[394094653,1763271042819,-297.28368691,0.00017973,2]
[394094654,1763271042832,-222.92,0.00017989,2]
[394094655,1763271042842,-500.0,0.00017999,2]
[394094656,1763271042851,-500.0,0.00017999,2]
[394094657,1763271042860,-500.0,0.00017999,2]
[394094658,1763271042869,-500.0,0.00017999,2]
[394094659,1763271042879,-500.0,0.00017999,2]
[394094660,1763271042888,-595.40182517,0.00017999,2]
[394094661,1763271042897,-300.0,0.00017999,2]
[394094662,1763271042908,-192.63086882,0.00017999,2]
[394094663,1763271042918,-3780.0,0.00018,2]
[394094664,1763271042927,-58686.56905345,0.00018,2]
[394094669,1763271045779,-3112.65764302,0.00018,2]
[394094670,1763271045895,-1088.82496,0.00018,2]
[394094671,1763271045906,-441.25499995,0.00018,2]
[394094672,1763271045954,-24502.25460849,0.00018,2]
[394094673,1763271046015,-5309.598,0.00018,2]
[394094697,1763271311315,150.0,0.0001,2]
[394094725,1763271475637,180.89,0.00025705,120]
[394094760,1763272140870,150.0,0.00030135,120]
[394094762,1763272183961,161.0,0.000301,120]
[394094763,1763272185358,161.0,0.000301,120]
[394094766,1763272232203,-828.0,0.00015897,2]
[394094767,1763272232213,-828.0,0.00015897,2]
[394094768,1763272232229,-828.0,0.00015897,2]
[394094769,1763272232239,-150.0,0.000162,2]
[394094770,1763272232249,-150.0,0.000162,2]
[394094772,1763272232258,-150.0,0.0001656,2]
[394094773,1763272232267,-36.53334476,0.00016754,2]
[394094775,1763272232294,-436.22665524,0.00016754,2]
[394094776,1763272232303,-89.51663011,0.0001684,2]
[394094777,1763272232314,-110.48336989,0.0001684,2]
[394094778,1763272232323,-250.0,0.00016869,2]
[394094779,1763272232332,-300.0,0.00016912,2]
[394094780,1763272232341,-485.18739447,0.00016912,2]
[394094781,1763272232369,-667.21344307,0.00016912,2]
[394094792,1763272237860,-47.59916246,0.00016912,2]
[394094793,1763272237871,-150.0,0.0001692,2]
[394094794,1763272237880,-144.14583754,0.00017,2]
[394094865,1763272239929,-105.85416246,0.00017,2]
[394094867,1763272239939,-344.2552497,0.00017033,3]
[394094876,1763272240094,-654.7447503,0.00017033,3]
[394094877,1763272240104,-150.0,0.00017033,2]
[394094878,1763272240114,-277.35679052,0.00017084,2]
[394094879,1763272240123,-180.89,0.00017136,2]
[394094880,1763272240133,-150.0,0.0001728,2]
[394094881,1763272240142,-2000.0,0.000173,2]
[394094882,1763272240151,-169.4,0.00017378,2]
[394094883,1763272240161,-579.9027993,0.00017592,2]
[394094884,1763272240171,-250.0,0.00017605,2]
[394094885,1763272240182,-150.0,0.00017616,2]
[394094886,1763272240191,-169.4,0.00017616,2]
[394094887,1763272240201,-150.0,0.00017616,2]
[394094888,1763272240210,-169.4,0.00017616,2]
[394094889,1763272240221,-150.0,0.00017616,2]
[394094890,1763272240230,-169.4,0.00017616,2]
[394094891,1763272240240,-150.0,0.00017616,2]
[394094892,1763272240250,-150.0,0.00017616,2]
[394094893,1763272240260,-169.4,0.00017616,2]
[394094894,1763272240269,-169.4,0.00017616,2]
[394094895,1763272240278,-150.0,0.00017616,2]
[394094896,1763272240288,-150.0,0.00017616,2]
[394094897,1763272240297,-425.21,0.00017616,2]
[394094898,1763272240307,-150.0,0.0001764,2]
[394094899,1763272240317,-1271.773,0.0001764,2]
[394094900,1763272240326,-300.0,0.00017644,2]
[394094901,1763272240335,-150.0,0.00017644,2]
[394094902,1763272240344,-1168.33285988,0.00017659,2]
[394094946,1763272242982,-320.66714012,0.00017659,2]
[394094947,1763272242992,-169.4,0.00017678,2]
[394094948,1763272243001,-150.0,0.00017678,2]
[394094949,1763272243011,-222.22926538,0.00017691,2]
[394094950,1763272243020,-121.96859737,0.00017725,2]
[394094951,1763272243189,-198.00140263,0.00017725,2]
[394094952,1763272243199,-300.0,0.00017725,2]
[394094953,1763272243208,-150.0,0.00017725,2]
[394094954,1763272243217,-301.76,0.00017725,2]
[394094955,1763272243227,-200.0,0.00017856,2]
[394094956,1763272243236,-1102.21453038,0.000179,2]
[394094957,1763272243245,-153.54152058,0.000179,2]
[394094958,1763272243255,-161.0,0.000179,2]
[394094959,1763272243264,-161.0,0.000179,2]
[394094960,1763272243273,-9570.89091483,0.000179,2]
[394094961,1763272243283,-912.6402667,0.00017958,2]
[394094962,1763272243292,-37317.1381083,0.00017958,2]
[394094963,1763272243301,-500.0,0.00017989,2]
[394094964,1763272243311,-250.0,0.00017989,2]
[394094965,1763272243320,-322.6107,0.00017989,2]
[394094966,1763272243330,-151.0,0.00017989,2]
[394094967,1763272243339,-574.12855637,0.00017989,2]
[394094968,1763272243349,-250.0,0.00017989,2]
[394094970,1763272243358,-250.0,0.00017989,2]
[394094972,1763272243367,-151.0,0.00017989,2]
[394094973,1763272243376,-151.0,0.00017989,2]
[394094974,1763272243386,-151.0,0.00017989,2]
[394094975,1763272243398,-151.0,0.00017989,2]
[394094976,1763272243407,-151.0,0.00017989,2]
[394094977,1763272243416,-151.0,0.00017989,2]
[394094978,1763272243426,-151.0,0.00017989,2]
[394094979,1763272243435,-151.0,0.00017989,2]
[394094980,1763272243444,-151.0,0.00017989,2]
[394094981,1763272243454,-151.0,0.00017989,2]
[394094982,1763272243463,-151.0,0.00017989,2]
[394094983,1763272243473,-151.0,0.00017989,2]
[394094984,1763272243483,-300.0,0.00017999,2]
[394094985,1763272243492,-300.0,0.00017999,2]
[394094986,1763272243502,-405.87529954,0.00017999,2]
[394094987,1763272243511,-500.0,0.00017999,2]
[394094988,1763272243520,-500.0,0.00017999,2]
[394094989,1763272243530,-497.13560598,0.00017999,2]
[394094990,1763272243540,-3024.0,0.00018,2]
[394094991,1763272243549,-150.0,0.00018,2]
[394094992,1763272243559,-150.0,0.00018,2]
[394094993,1763272243569,-150.0,0.00018,2]
[394094994,1763272243578,-1630.63591479,0.00018,2]
[394094995,1763272245936,-151.32,0.00017616,2]
[394094996,1763272245948,-10745.93210446,0.00018,2]
[394094997,1763272245959,-5232.00002825,0.00018,2]
[394094998,1763272245970,-34954.55582644,0.00018,2]
[394095010,1763272403359,1756.64566124,0.00015,2]
[394095016,1763272647152,1000.0,0.000155,2]
[394095017,1763272656772,1000.0,0.00015,2]
[394095021,1763272864201,161.54,0.00016,30]
[394095061,1763273341020,150.0,0.00030134,120]
[394095070,1763273386898,150.0,0.00016472,120]
[394095078,1763273432039,-150.0,0.000156,2]
[394095079,1763273432048,-1000.0,0.00016,2]
[394095080,1763273432057,-166.66,0.00016139,2]
[394095081,1763273432067,-300.0,0.00016195,2]
[394095082,1763273432076,-300.0,0.00016195,2]
[394095083,1763273432084,-1200.0,0.00016195,2]
[394095084,1763273432094,-301.14037554,0.00016196,2]
[394095085,1763273432103,-1361.58271724,0.00016196,2]
[394095086,1763273432112,-151.0,0.00016196,2]
[394095087,1763273432121,-151.0,0.00016196,2]
[394095088,1763273432131,-166.0,0.00016196,2]
[394095089,1763273432140,-151.0,0.00016196,2]
[394095090,1763273432150,-151.0,0.00016196,2]
[394095091,1763273432162,-166.0,0.00016196,2]
[394095092,1763273432171,-151.0,0.00016196,2]
[394095093,1763273432180,-151.0,0.00016196,2]
[394095094,1763273432190,-166.0,0.00016196,2]
[394095095,1763273432199,-151.0,0.00016196,2]
[394095096,1763273432208,-151.0,0.00016196,2]
[394095097,1763273432218,-166.0,0.00016196,2]
[394095098,1763273432227,-156.84565856,0.00016196,2]
[394095099,1763273432236,-151.0,0.00016196,2]
[394095100,1763273432246,-151.0,0.00016196,2]
[394095101,1763273432255,-166.0,0.00016196,2]
[394095102,1763273432265,-151.0,0.00016196,2]
[394095105,1763273432274,-253.61607805,0.00016196,2]
[394095107,1763273432283,-151.0,0.00016196,2]
[394095108,1763273432292,-151.0,0.00016196,2]
[394095110,1763273432301,-151.0,0.00016196,2]
[394095113,1763273432310,-151.0,0.00016196,2]
[394095116,1763273432319,-151.0,0.00016196,2]
[394095119,1763273432328,-151.0,0.00016196,2]
[394095122,1763273432337,-151.0,0.00016196,2]
[394095124,1763273432346,-151.0,0.00016196,2]
[394095125,1763273432355,-151.0,0.00016196,2]
[394095129,1763273432365,-151.0,0.00016196,2]
[394095131,1763273432374,-151.0,0.00016196,2]
[394095135,1763273432384,-151.0,0.00016196,2]
[394095136,1763273432395,-151.0,0.00016196,2]
[394095138,1763273432404,-151.0,0.00016196,2]
[394095140,1763273432414,-151.0,0.00016196,2]
[394095142,1763273432423,-151.0,0.00016196,2]
[394095144,1763273432432,-151.0,0.00016196,2]
[394095146,1763273432441,-151.0,0.00016196,2]
[394095147,1763273432451,-204.99543669,0.00016196,2]
[394095148,1763273432460,-1000.0,0.00016342,2]
[394095149,1763273432469,-1110.63561592,0.00016438,2]
[394095284,1763273439961,-147.30438408,0.00016438,2]
[394095285,1763273439970,-150.0,0.00016472,2]
[394095286,1763273439982,-166.66,0.00016479,2]
[394095287,1763273439991,-200.0,0.00016494,2]
[394095288,1763273440001,-178.61,0.00016686,2]
[394095289,1763273440011,-166.34840066,0.00016813,2]
[394095290,1763273440021,-500.0,0.00016813,2]
[394095291,1763273440031,-300.70741836,0.00016813,2]
[394095292,1763273440040,-166.66,0.00016818,2]
[394095293,1763273440050,-1214.0,0.00016903,2]
[394095294,1763273440059,-302.36,0.00016978,2]
[394095295,1763273440068,-322.6107,0.00017084,2]
[394095296,1763273440078,-151.0,0.00017084,2]
[394095297,1763273440087,-151.0,0.00017084,2]
[394095298,1763273440096,-250.0,0.00017084,2]
[394095299,1763273440106,-151.0,0.00017084,2]
[394095300,1763273440115,-202.58000438,0.00017084,2]
[394095301,1763273440127,-47.41999562,0.00017084,2]
[394095302,1763273440136,-151.0,0.00017084,2]
[394095303,1763273440146,-250.0,0.00017084,2]
[394095304,1763273440157,-10.45314302,0.00017084,2]
[394095305,1763273440173,-140.54685698,0.00017084,2]
[394095306,1763273440182,-250.0,0.00017084,2]
[394095307,1763273440192,-453.56153013,0.00017084,2]
[394095308,1763273440205,-46.43846987,0.00017084,2]
[394095309,1763273440215,-151.0,0.00017084,2]
[394095310,1763273440225,-250.0,0.00017084,2]
[394095311,1763273440234,-151.0,0.00017084,2]
[394095312,1763273440244,-250.0,0.00017084,2]
[394095313,1763273440253,-151.0,0.00017084,2]
[394095314,1763273440263,-151.0,0.00017084,2]
[394095315,1763273440272,-151.0,0.00017084,2]
[394095316,1763273440281,-154.26100194,0.00017084,2]
[394095317,1763273440291,-500.0,0.00017084,2]
[394095318,1763273440300,-250.0,0.00017084,2]
[394095319,1763273440309,-500.0,0.00017084,2]
[394095320,1763273440320,-500.0,0.00017084,2]
[394095321,1763273440330,-250.0,0.00017084,2]
[394095322,1763273440339,-500.0,0.00017084,2]
[394095323,1763273440348,-250.0,0.00017084,2]
[394095324,1763273440358,-500.0,0.00017084,2]
[394095325,1763273440367,-250.0,0.00017084,2]
[394095326,1763273440376,-500.0,0.00017084,2]
[394095327,1763273440385,-250.0,0.00017084,2]
[394095328,1763273440395,-500.0,0.00017084,2]
[394095329,1763273440406,-250.0,0.00017084,2]
[394095330,1763273440415,-250.0,0.00017084,2]
[394095331,1763273440424,-241.94386949,0.00017084,2]
[394095332,1763273440946,-258.05613051,0.00017084,2]
[394095333,1763273440955,-263.55863032,0.00017084,2]
[394095334,1763273440964,-250.0,0.00017084,2]
[394095335,1763273440975,-266.34691367,0.00017084,2]
[394095336,1763273440984,-250.0,0.00017084,2]
[394095337,1763273440994,-151.0,0.00017084,2]
[394095338,1763273441004,-250.0,0.00017084,2]
[394095339,1763273441013,-574.12855637,0.00017084,2]
[394095340,1763273441023,-5.88248783,0.00017084,2]
[394095341,1763273441035,-145.11751217,0.00017084,2]
[394095342,1763273441044,-151.0,0.00017084,2]
[394095343,1763273441054,-151.0,0.00017084,2]
[394095344,1763273441063,-151.0,0.00017084,2]
[394095345,1763273441072,-151.0,0.00017084,2]
[394095346,1763273441082,-151.0,0.00017084,2]
[394095347,1763273441091,-151.0,0.00017084,2]
[394095348,1763273441101,-151.0,0.00017084,2]
[394095349,1763273441111,-161.67444886,0.00017084,2]
[394095350,1763273441120,-277.35679052,0.00017084,2]
[394095351,1763273441130,-1214.0,0.00017127,2]
[394095352,1763273441139,-166.66,0.00017158,2]
[394095353,1763273441148,-582.23102044,0.0001716,2]
[394095354,1763273441158,-195.0,0.0001716,2]
[394095355,1763273441168,-250.0,0.0001716,2]
[394095356,1763273441177,-300.5,0.00017178,2]
[394095357,1763273441186,-1214.0,0.00017196,2]
[394095358,1763273441195,-1214.0,0.00017248,2]
[394095359,1763273441204,-2000.0,0.000173,2]
[394095360,1763273441214,-168.0,0.00017315,2]
[394095361,1763273441223,-1214.0,0.00017448,2]
[394095362,1763273441232,-372.04,0.00017478,2]